bitfinex/quotes_SOLUSD_20251130
["timestamp","ask_amount","ask_price","bid_price","bid_amount"]
[1764467623898,0.66,136.52,136.5,8.00599725]
[1764467624479,2.07934597,136.53,136.5,8.00599725]
[1764467624684,2.73934597,136.53,136.51,0.68]
[1764467626809,2.73934597,136.53,136.5,7.32599725]
[1764467626810,2.73934597,136.53,136.5,0.68]
[1764467627809,0.66,136.52,136.5,8.00600362]
[1764467628304,18.35431203,136.53,136.5,8.00600362]
[1764467628504,16.27496606,136.53,136.5,8.00600362]
[1764467628696,12.19964284,136.53,136.5,8.00600362]
[1764467628891,3.24932245,136.53,136.5,8.00600362]
[1764467629093,0.66,136.52,136.5,8.00600362]
[1764467629701,3.90932245,136.53,136.5,8.00600362]
[1764467630288,0.66,136.52,136.5,8.00600362]
[1764467631906,3.90932245,136.53,136.5,8.00600362]
[1764467632214,3.24932245,136.53,136.49,7.35854406]
[1764467632393,3.24932245,136.51,136.49,0.032]
[1764467632595,6.46932245,136.51,136.49,0.032]
[1764467632909,0.66,136.5,136.49,0.032]
[1764467634308,3.22,136.51,136.49,0.032]
[1764467634500,7.12932245,136.51,136.49,0.032]
[1764467634699,0.66,136.5,136.49,0.032]
[1764467635408,3.24932245,136.51,136.49,0.032]
[1764467635613,3.93,136.51,136.49,0.712]
[1764467636505,14.47633754,136.52,136.49,0.712]
[1764467636711,11.22701509,136.52,136.49,0.712]
[1764467637017,11.93701509,136.52,136.49,0.712]
[1764467641313,8.00701509,136.52,136.49,0.712]
[1764467641517,11.22701509,136.52,136.49,8.03814999]
[1764467642121,3.22,136.52,136.5,0.68]
[1764467644700,18.23930558,136.54,136.5,8.00563308]
[1764467644906,11.25369694,136.55,136.5,11.25495553]
[1764467645106,11.25369694,136.55,136.51,0.68]
[1764467646319,11.25369694,136.55,136.51,8.00509444]
[1764467648124,11.25369694,136.55,136.52,0.68]
[1764467648324,25.96717191,136.56,136.52,8.0045838]
[1764467648618,6.46932245,136.56,136.52,8.0045838]
[1764467648828,0.71,136.55,136.53,0.68]
[1764467653231,3.95932245,136.55,136.53,0.68]
[1764467653528,0.71,136.55,136.53,0.68]
[1764467655926,6.46932245,136.54,136.49,62.832]
[1764467656111,3.24932245,136.52,136.49,9.52194492]
[1764467656303,3.24932245,136.51,136.49,7.64090694]
[1764467656500,3.24932245,136.51,136.49,0.712]
[1764467656830,3.95932245,136.51,136.49,0.712]
[1764467657323,3.90805145,136.51,136.49,0.712]
[1764467657529,3.19805145,136.51,136.49,0.712]
[1764467657827,9.51994492,136.52,136.49,0.712]
[1764467658017,3.24932245,136.51,136.49,0.712]
[1764467658209,3.95932245,136.51,136.49,0.712]
[1764467659229,0.71,136.51,136.49,0.712]
[1764467663711,3.24932245,136.52,136.49,0.712]
[1764467663931,3.95932245,136.52,136.49,0.712]
[1764467665315,0.7,136.51,136.49,0.712]
[1764467666215,3.94932245,136.52,136.49,0.712]
[1764467668930,0.69,136.51,136.49,8.03853662]
[1764467669634,22.83345638,136.53,136.49,8.03853662]
[1764467669941,0.69,136.52,136.49,8.03853662]
[1764467672238,0.69,136.52,136.49,0.032]
[1764467672465,0.69,136.52,136.5,0.71]
[1764467672821,0.69,136.52,136.49,0.742]
[1764467673844,0.69,136.52,136.49,8.06827862]
[1764467675020,22.01269398,136.54,136.51,9.09426806]
[1764467675218,3.91,136.55,136.51,9.09426806]
[1764467675414,3.91,136.55,136.52,0.71]
[1764467676019,3.91,136.55,136.53,7.32439756]
[1764467676225,3.22,136.55,136.53,7.32439756]
[1764467676429,3.91,136.55,136.53,7.32439756]
[1764467676627,3.91,136.55,136.52,8.03483503]
[1764467677130,3.93932245,136.55,136.52,8.03483503]
[1764467690561,2.7686624,136.55,136.52,8.03483503]
[1764467695865,2.0786624,136.53,136.49,63.552]
[1764467696048,2.0786624,136.53,136.49,70.87847047]
[1764467696240,0.72,136.52,136.49,70.87847047]
[1764467698372,0.72,136.52,136.49,8.07847047]
[1764467700164,0.72,136.52,136.49,8.07847047]
[1764467701264,0.72,136.52,136.49,7.35847047]
[1764467701564,0.72,136.52,136.5,8.04599554]
[1764467705767,10.12292813,136.54,136.49,16.45281212]
[1764467705957,0.72,136.53,136.51,0.72]
[1764467706159,0.72,136.53,136.5,0.72]
[1764467707048,0.72,136.53,136.5,8.04587982]
[1764467708873,0.72,136.53,136.5,7.32587982]
[1764467709068,0.72,136.53,136.5,8.04587982]
[1764467712475,2.7986624,136.53,136.5,7.32587982]
[1764467712970,0.72,136.52,136.5,7.32587982]
[1764467713371,0.72,136.52,136.5,8.04587982]
[1764467713874,2.0786624,136.53,136.5,8.04587982]
[1764467714177,2.7986624,136.53,136.5,8.04587982]
[1764467717881,2.0786624,136.53,136.5,8.04587982]
[1764467718056,0.72,136.52,136.5,8.04587982]
[1764467719957,2.7986624,136.53,136.5,7.32587982]
[1764467720257,2.7986624,136.53,136.51,0.72]
[1764467720457,2.7986624,136.53,136.5,8.04587982]
[1764467722082,0.72,136.53,136.5,8.04587982]
[1764467738679,0.72,136.53,136.51,0.69]
[1764467738878,0.72,136.53,136.5,8.01587982]
[1764467744789,0.72,136.53,136.5,7.32587982]
[1764467745006,2.7986624,136.53,136.5,8.01587982]
[1764467750601,3.96886769,136.53,136.5,8.01587982]
[1764467753300,0.72,136.53,136.5,8.01587982]
[1764467758015,3.22,136.52,136.49,0.032]
[1764467758228,3.24886769,136.5,136.49,0.032]
[1764467758714,3.90886769,136.5,136.49,0.032]
[1764467758885,6.84453977,136.5,136.49,0.032]
[1764467759085,14.17054709,136.5,136.49,0.032]
[1764467763621,10.9216794,136.5,136.49,0.032]
[1764467763794,14.17054709,136.5,136.49,0.032]
[1764467768218,10.9216794,136.5,136.49,0.032]
[1764467768597,14.17054709,136.5,136.49,0.032]
[1764467774220,17.39054709,136.5,136.49,0.032]
[1764467775924,20.63941478,136.5,136.49,0.032]
[1764467776620,17.39054709,136.5,136.49,0.032]
[1764467779128,20.63941478,136.5,136.49,0.032]
[1764467780029,29.73368284,136.5,136.49,0.032]
[1764467788512,16.308864,136.48,136.47,0.2]
[1764467788715,22.77773169,136.48,136.47,0.2]
[1764467788934,23.49773169,136.48,136.47,0.2]
[1764467789114,26.43426584,136.48,136.47,0.2]
[1764467790437,33.76134673,136.48,136.47,0.2]
[1764467792645,30.51247904,136.48,136.47,0.2]
[1764467792844,33.76134673,136.48,136.47,0.2]
[1764467797741,30.54134673,136.48,136.47,0.2]
[1764467798047,33.76134673,136.48,136.47,0.2]
[1764467812552,32.5944846,136.48,136.47,0.2]
[1764467820378,28.6544846,136.48,136.47,0.89]
[1764467820564,31.8744846,136.48,136.47,0.89]
[1764467822475,12.3456206,136.48,136.47,0.89]
[1764467822771,104.4,136.49,136.47,0.89]
[1764467822772,116.74467834,136.49,136.47,0.89]
[1764467823073,3.22,136.48,136.47,0.2]
[1764467823484,3.22,136.48,136.47,0.89]
[1764467827486,5.30200556,136.48,136.47,0.89]
[1764467829564,3.22,136.48,136.47,0.89]
[1764467831282,5.30200556,136.49,136.47,0.89]
[1764467831477,5.30200556,136.49,136.48,0.69]
[1764467839304,7.52849713,136.51,136.48,0.69]
[1764467839487,5.30200556,136.52,136.48,0.69]
[1764467840071,2.08200556,136.51,136.48,0.69]
[1764467840270,2.08200556,136.51,136.48,8.0169396]
[1764467840696,2.08200556,136.51,136.49,0.72]
[1764467843294,12.62708319,136.52,136.49,0.72]
[1764467849395,2.08200556,136.51,136.49,0.72]
[1764467853007,5.30200556,136.52,136.49,0.72]
[1764467853301,106.48200556,136.53,136.49,8.04634407]
[1764467853505,3.22,136.53,136.49,8.04634407]
[1764467853717,3.22,136.53,136.5,0.65]
[1764467855622,3.22,136.53,136.5,7.97571772]
[1764467856225,3.22,136.53,136.51,0.65]
[1764467860286,5.30200556,136.54,136.51,7.97540725]
[1764467860688,5.30200556,136.54,136.52,0.65]
[1764467862292,6.00200556,136.54,136.52,0.65]
[1764467869416,2.08200556,136.53,136.52,0.65]
[1764467872520,3.24883508,136.53,136.52,0.65]
[1764467877427,11.27350194,136.53,136.49,0.66]
[1764467877605,3.92,136.52,136.49,0.66]
[1764467877926,3.24883508,136.51,136.49,0.66]
[1764467878604,3.94883508,136.51,136.49,0.66]
[1764467879825,0.7,136.51,136.49,0.66]
[1764467880406,0.7,136.51,136.49,7.98644476]
[1764467880725,6.46883508,136.52,136.49,7.98644476]
[1764467880926,6.46883508,136.52,136.5,0.66]
[1764467881110,7.16883508,136.52,136.5,0.66]
[1764467881420,3.92,136.52,136.5,0.66]
[1764467882333,7.16883508,136.52,136.5,0.66]
[1764467905330,3.24883508,136.51,136.5,0.66]
[1764467909153,6.46883508,136.52,136.5,0.66]
[1764467916062,3.24883508,136.51,136.5,0.66]
[1764467917055,3.24883508,136.51,136.49,7.32644476]
[1764467917248,3.24883508,136.51,136.49,8.03644476]
[1764467918147,25.18872492,136.52,136.49,8.03644476]
[1764467919155,25.18872492,136.52,136.49,7.32644476]
[1764467919460,25.18872492,136.52,136.5,0.71]
[1764467920063,21.93988984,136.52,136.5,0.71]
[1764467920363,7.16883508,136.52,136.5,0.71]
[1764467920956,11.27435305,136.51,136.48,18.01988984]
[1764467921158,11.27435305,136.51,136.47,0.2]
[1764467921159,3.24883508,136.49,136.47,0.2]
[1764467921458,6.46883508,136.48,136.47,0.2]
[1764467921664,9.40472263,136.48,136.47,0.2]
[1764467921866,10.10472263,136.48,136.47,0.2]
[1764467923365,9.40472263,136.48,136.47,0.2]
[1764467924566,10.10472263,136.48,136.47,0.2]
[1764467932567,8.93712265,136.48,136.47,0.2]
[1764467946572,8.23712265,136.48,136.47,0.2]
[1764467947686,8.93712265,136.48,136.47,0.2]
[1764467948880,8.23712265,136.48,136.47,0.2]
[1764467950561,8.23712265,136.48,136.47,0.88]
[1764467951086,8.23712265,136.48,136.47,0.2]
[1764467959090,2.93588755,136.48,136.47,9.68994492]
[1764467959280,2.0812351,136.53,136.47,19.09879781]
[1764467959483,2.0812351,136.53,136.48,9.77426806]
[1764467959879,2.0812351,136.53,136.49,0.71]
[1764467960588,2.0812351,136.53,136.49,19.28008245]
[1764467961378,2.0812351,136.53,136.5,0.71]
[1764467961577,2.7412351,136.53,136.5,0.71]
[1764467961887,2.7412351,136.53,136.5,19.28008245]
[1764467962295,2.7412351,136.53,136.51,0.71]
[1764467964800,0.66,136.53,136.51,0.71]
[1764467965398,2.7412351,136.53,136.51,0.71]
[1764467972005,2.0812351,136.53,136.51,0.71]
[1764467973393,29.13414112,136.54,136.51,0.71]
[1764467974006,29.84414112,136.54,136.51,0.71]
[1764467975212,5.3012351,136.51,136.47,0.92]
[1764467975379,2.0812351,136.48,136.47,0.92]
[1764467976007,5.3012351,136.48,136.47,0.92]
[1764467976183,2.0812351,136.48,136.47,0.92]
[1764467979107,2.7912351,136.48,136.47,0.2]
[1764467979488,2.0812351,136.48,136.47,0.2]
[1764467980407,2.0812351,136.48,136.47,0.92]
[1764467994527,3.25200784,136.48,136.47,0.92]
[1764467999828,13.798723,136.49,136.47,0.92]
[1764468000232,14.468723,136.49,136.47,0.92]
[1764468000434,3.25200784,136.48,136.47,0.92]
[1764468000607,14.468723,136.49,136.47,0.92]
[1764468001225,12.62718948,136.51,136.48,0.67]
[1764468001424,7.32486783,136.53,136.48,0.95432314]
[1764468001931,10.57687567,136.53,136.49,0.67]
[1764468002744,10.57687567,136.53,136.49,7.99618238]
[1764468002921,10.57687567,136.53,136.5,0.67]
[1764468007730,16.308864,136.48,136.47,0.2]
[1764468007936,6.47200784,136.48,136.47,0.2]
[1764468008236,7.14200784,136.48,136.47,0.2]
[1764468008422,10.07811089,136.48,136.47,0.2]
[1764468009530,33.71405578,136.48,136.47,0.2]
[1764468011039,25.71697489,136.48,136.47,0.2]
[1764468011219,6.47200784,136.48,136.47,0.87]
[1764468011540,6.18789539,136.49,136.47,0.87]
[1764468011746,3.25200784,136.48,136.47,0.2]
[1764468012318,3.25200784,136.48,136.47,0.87]
[1764468022825,3.25200784,136.49,136.47,0.87]
[1764468023026,10.54619168,136.5,136.48,0.67]
[1764468023226,3.25200784,136.49,136.48,0.67]
[1764468029157,3.25200784,136.49,136.47,0.2]
[1764468029158,3.25200784,136.49,136.47,0.88]
[1764468030233,3.25200784,136.49,136.48,0.68]
[1764468033757,6.47200784,136.5,136.48,0.68]
[1764468033945,3.25200784,136.5,136.48,0.68]
[1764468034253,3.25200784,136.52,136.48,8.00684094]
[1764468034454,3.25200784,136.52,136.49,0.68]
[1764468034956,10.57696149,136.52,136.49,0.68]
[1764468037459,3.25200784,136.51,136.49,0.68]
[1764468039557,3.25200784,136.5,136.49,0.68]
[1764468042861,3.25200784,136.51,136.49,0.68]
[1764468043863,3.94200784,136.5,136.47,7.52742073]
[1764468044055,3.25200784,136.48,136.47,0.2]
[1764468044464,3.94200784,136.48,136.47,0.2]
[1764468044758,11.26908873,136.48,136.47,0.2]
[1764468053867,10.57908873,136.48,136.47,0.88]
[1764468054050,3.25200784,136.48,136.47,0.88]
[1764468056673,2.08117135,136.48,136.47,0.88]
[1764468079597,3.22,136.49,136.47,0.88]
[1764468079799,2.08117135,136.48,136.47,0.88]
[1764468080498,2.08117135,136.5,136.47,8.20747096]
[1764468080698,2.08117135,136.5,136.48,0.68]
[1764468098515,2.75117135,136.5,136.47,8.23747096]
[1764468098697,2.75117135,136.5,136.48,0.71]
[1764468099797,2.08117135,136.5,136.48,0.71]
[1764468100010,2.75117135,136.5,136.48,0.71]
[1764468100218,2.08117135,136.5,136.48,0.71]
[1764468101525,2.75117135,136.5,136.48,0.71]
[1764468102023,2.08117135,136.49,136.48,0.71]
[1764468107407,5.30117135,136.5,136.48,0.71]
[1764468112450,2.08117135,136.5,136.48,8.03672408]
[1764468112657,5.30117135,136.51,136.48,8.03672408]
[1764468112949,5.30117135,136.51,136.49,0.71]
[1764468113450,5.30117135,136.52,136.49,0.71]
[1764468113751,3.22,136.52,136.49,0.71]
[1764468114652,3.22,136.52,136.5,7.32600732]
[1764468115046,3.22,136.52,136.5,7.97600732]
[1764468116550,5.30117135,136.52,136.51,0.65]
[1764468118339,2.08117135,136.52,136.51,0.65]
[1764468118541,3.24916198,136.52,136.51,0.65]
[1764468118835,3.24916198,136.53,136.51,0.65]
[1764468120328,8.00672408,136.54,136.51,7.97525684]
[1764468120531,3.24916198,136.55,136.51,7.97525684]
[1764468120740,3.24916198,136.55,136.52,0.65]
[1764468121227,6.46916198,136.56,136.52,0.65]
[1764468121652,6.46916198,136.56,136.52,0.93432314]
[1764468121653,3.24916198,136.56,136.52,0.93432314]
[1764468121840,3.24916198,136.56,136.53,0.65]
[1764468122559,3.24916198,136.56,136.54,7.32386113]
[1764468122931,3.24916198,136.56,136.55,0.65]
[1764468124760,3.24916198,136.56,136.54,0.65]
[1764468132452,3.24916198,136.55,136.53,7.32439756]
[1764468132851,3.24916198,136.55,136.54,0.65]
[1764468136243,3.24916198,136.55,136.53,0.65]
[1764468136739,3.92916198,136.55,136.53,0.65]
[1764468140067,3.24916198,136.55,136.53,0.65]
[1764468142071,10.57202651,136.56,136.53,0.65]
[1764468142958,18.57640899,136.58,136.53,7.97391391]
[1764468143159,8.0307595,136.6,136.54,12.34343004]
[1764468143361,3.95916198,136.61,136.54,13.03343004]
[1764468143568,3.24916198,136.6,136.56,9.09426806]
[1764468143869,3.95916198,136.6,136.56,9.09426806]
[1764468144061,3.95916198,136.6,136.57,0.69]
[1764468146558,3.95916198,136.6,136.57,8.01210738]
[1764468150064,3.24916198,136.58,136.56,7.32009704]
[1764468150246,3.24916198,136.57,136.55,0.28432314]
[1764468150453,3.24916198,136.57,136.55,17.13754299]
[1764468150651,3.24916198,136.57,136.56,0.72]
[1764468151873,3.24916198,136.58,136.56,0.72]
[1764468153566,3.24916198,136.58,136.56,8.0426748]
[1764468154874,3.93916198,136.57,136.54,0.72]
[1764468155173,3.24916198,136.56,136.54,0.72]
[1764468156370,3.24916198,136.56,136.54,8.04374893]
[1764468157076,3.24916198,136.56,136.55,0.72]
[1764468157470,3.24916198,136.56,136.54,8.04374893]
[1764468157661,3.93916198,136.56,136.53,8.3285537]
[1764468158666,3.93916198,136.56,136.54,0.72]
[1764468158859,3.93916198,136.56,136.54,8.04382209]
[1764468158860,3.24916198,136.56,136.54,8.04382209]
[1764468160408,3.93916198,136.57,136.54,7.32382209]
[1764468160583,3.93916198,136.57,136.55,0.72]
[1764468161786,6.46916198,136.58,136.55,0.72]
[1764468162280,11.26070458,136.59,136.55,0.72]
[1764468162683,26.70045293,136.61,136.56,9.09426806]
[1764468162857,3.93916198,136.62,136.57,0.72]
[1764468163194,3.24916198,136.61,136.57,0.72]
[1764468163787,3.93916198,136.61,136.57,0.72]
[1764468163954,3.93916198,136.61,136.58,7.32171621]
[1764468164385,3.93916198,136.61,136.58,8.04171621]
[1764468164781,3.93916198,136.62,136.59,0.72]
[1764468166890,10.66844039,136.63,136.59,8.04088731]
[1764468167277,10.66844039,136.63,136.6,0.72]
[1764468167482,11.35844039,136.63,136.6,0.72]
[1764468169169,3.24916198,136.62,136.6,0.72]
[1764468169589,0.1,136.63,136.6,8.04019252]
[1764468169976,0.1,136.63,136.61,0.72]
[1764468170592,0.1,136.63,136.61,8.03980182]
[1764468170970,3.34916198,136.63,136.61,8.03980182]
[1764468173693,3.93916198,136.62,136.59,0.72]
[1764468173883,3.24916198,136.61,136.59,0.72]
[1764468174685,3.24916198,136.61,136.59,8.04117107]
[1764468178686,2.07685135,136.61,136.59,8.04117107]
[1764468179412,2.07685135,136.61,136.59,7.32117107]
[1764468179608,2.07685135,136.61,136.6,0.72]
[1764468179811,0.69,136.62,136.6,0.72]
[1764468180012,2.07685135,136.61,136.6,0.72]
[1764468181529,9.49596994,136.63,136.6,0.72]
[1764468182721,10.16596994,136.63,136.6,0.72]
[1764468186824,9.49596994,136.63,136.6,0.72]
[1764468187122,2.17685135,136.63,136.6,8.04036894]
[1764468187297,2.17685135,136.63,136.61,0.72]
[1764468189338,0.1,136.63,136.61,8.32411774]
[1764468189636,0.1,136.63,136.61,8.0397946]
[1764468189922,0.1,136.63,136.62,0.72]
[1764468190225,0.1,136.63,136.62,9.81426806]
[1764468191022,0.1,136.63,136.62,17.13384059]
[1764468191833,0.1,136.63,136.62,19.21069194]
[1764468192021,0.1,136.63,136.62,22.14227609]
[1764468193427,0.1,136.63,136.62,20.06542474]
[1764468194402,0.1,136.63,136.62,19.0611016]
[1764468194603,0.1,136.63,136.62,16.84951745]
[1764468195004,0.1,136.63,136.62,16.99167902]
[1764468195428,0.1,136.63,136.62,17.13384059]
[1764468208216,0.1,136.63,136.62,20.35384059]
[1764468218052,0.1,136.63,136.62,23.28542474]
[1764468218251,0.1,136.63,136.62,25.36227609]
[1764468220644,0.1,136.63,136.62,88.16227609]
[1764468221153,1e-08,136.63,136.62,22.14227609]
[1764468221351,1e-08,136.63,136.62,25.36227609]
[1764468222326,0.1,136.65,136.62,25.36227609]
[1764468222327,1e-08,136.65,136.63,27.47998341]
[1764468222550,1e-08,136.65,136.64,14.39111941]
[1764468222743,1e-08,136.65,136.64,15.11111941]
[1764468223054,1e-08,136.65,136.64,18.04162968]
[1764468224650,1e-08,136.65,136.64,25.36013085]
[1764468226062,1e-08,136.66,136.65,9.09426806]
[1764468226362,1e-08,136.66,136.65,74.69111941]
[1764468226860,1e-08,136.66,136.65,84.93959528]
[1764468229154,1e-08,136.66,136.65,82.86274393]
[1764468229552,1e-08,136.66,136.65,84.93959528]
[1764468235362,1e-08,136.66,136.65,82.86274393]
[1764468235544,1e-08,136.66,136.65,84.93959528]
[1764468237161,1e-08,136.66,136.65,82.86274393]
[1764468237359,1e-08,136.66,136.65,84.93959528]
[1764468238570,1e-08,136.66,136.65,86.1026921]
[1764468240763,1e-08,136.67,136.65,85.3826921]
[1764468240952,0.1,136.7,136.67,25.40313206]
[1764468240953,1e-08,136.68,136.67,25.40313206]
[1764468241153,1e-08,136.68,136.67,28.64308023]
[1764468241464,1e-08,136.68,136.67,32.25316117]
[1764468241667,1e-08,136.68,136.67,15.94429717]
[1764468242372,1e-08,136.68,136.67,78.74429717]
[1764468243378,1e-08,136.68,136.67,86.06119187]
[1764468249983,1e-08,136.7,136.69,95.34308023]
[1764468250171,1e-08,136.7,136.69,98.90480317]
[1764468250366,1e-08,136.7,136.69,95.664855]
[1764468250670,1e-08,136.7,136.69,98.90480317]
[1764468251681,1e-08,136.7,136.69,106.22062729]
[1764468275015,1e-08,136.7,136.69,102.98067912]
[1764468275315,1e-08,136.7,136.69,106.22062729]
[1764468280039,1e-08,136.7,136.69,102.01635598]
[1764468280325,0.66000001,136.7,136.69,85.70749198]
[1764468280502,0.66000001,136.7,136.69,85.99181512]
[1764468280819,0.66000001,136.7,136.69,102.15851755]
[1764468281117,0.66000001,136.7,136.69,102.30067912]
[1764468282330,1e-08,136.7,136.69,102.30067912]
[1764468282897,0.66000001,136.7,136.69,102.30067912]
[1764468284521,0.66000001,136.7,136.69,19.68749198]
[1764468285232,0.66000001,136.7,136.69,19.97181512]
[1764468285425,0.66000001,136.7,136.69,19.68749198]
[1764468285935,0.66000001,136.7,136.69,19.97181512]
[1764468286105,0.66000001,136.7,136.69,19.82965355]
[1764468286431,0.66000001,136.7,136.69,19.97181512]
[1764468301436,1e-08,136.7,136.69,85.51518974]
[1764468302135,1e-08,136.7,136.69,82.77181512]
[1764468302341,1e-08,136.7,136.69,85.99181512]
[1764468303235,1e-08,136.7,136.69,86.66181512]
[1764468303623,1e-08,136.7,136.69,85.99181512]
[1764468304418,0.72000001,136.7,136.69,85.99181512]
[1764468305127,1e-08,136.7,136.69,85.99181512]
[1764468307123,1e-08,136.7,136.69,23.19181512]
[1764468309945,1e-08,136.7,136.69,25.26518974]
[1764468310148,1e-08,136.7,136.69,25.93518974]
[1764468311243,1e-08,136.7,136.69,23.86181512]
[1764468313143,1e-08,136.7,136.69,86.66181512]
[1764468316550,0.72000001,136.7,136.69,22.90749198]
[1764468316936,0.72000001,136.7,136.69,23.04965355]
[1764468317333,0.72000001,136.7,136.69,23.19181512]
[1764468329690,0.72000001,136.7,136.69,23.04965355]
[1764468330080,0.72000001,136.7,136.69,19.82965355]
[1764468331284,0.72000001,136.7,136.69,19.68749198]
[1764468332789,0.72000001,136.7,136.69,19.82965355]
[1764468333288,0.72000001,136.7,136.69,3.56172294]
[1764468333495,2.79337463,136.7,136.67,3.22]
[1764468333676,2.07337462,136.68,136.65,7.31389647]
[1764468333865,2.07337462,136.67,136.65,7.31389647]
[1764468334395,0.72,136.66,136.65,16.40816453]
[1764468334571,0.72,136.66,136.65,16.12384139]
[1764468334779,0.72,136.66,136.65,23.44180699]
[1764468335085,0.72,136.66,136.65,23.58396856]
[1764468335285,0.72,136.66,136.65,7.31389647]
[1764468335286,2.79337462,136.66,136.65,7.31389647]
[1764468335490,2.79337462,136.66,136.61,12.02994492]
[1764468335791,0.72,136.65,136.63,16.308864]
[1764468336865,0.72,136.65,136.63,23.62761048]
[1764468337202,1e-08,136.7,136.64,31.25434511]
[1764468337363,2.79337463,136.7,136.65,0.28432314]
[1764468337568,2.79337463,136.7,136.65,3.05769776]
[1764468337767,2.79337463,136.7,136.66,21.98204799]
[1764468337768,0.72,136.69,136.66,21.98204799]
[1764468338288,0.72,136.69,136.65,3.05769776]
[1764468338673,0.72,136.69,136.65,0.98432314]
[1764468339276,0.72,136.69,136.66,7.31743011]
[1764468340196,0.72,136.69,136.66,10.53743011]
[1764468343202,0.72,136.69,136.66,11.23743011]
[1764468343376,1e-08,136.7,136.67,9.09426806]
[1764468343695,0.72000001,136.7,136.67,9.79426806]
[1764468344372,0.72000001,136.7,136.68,7.31635937]
[1764468353912,0.72000001,136.7,136.67,9.09426806]
[1764468354090,0.72000001,136.7,136.67,9.79426806]
[1764468354290,0.72000001,136.7,136.67,9.09426806]
[1764468354596,0.72000001,136.7,136.67,9.79426806]
[1764468355309,1e-08,136.7,136.68,7.31635937]
[1764468355512,1e-08,136.7,136.68,7.98635937]
[1764468357389,0.72000001,136.7,136.68,7.98635937]
[1764468358514,1e-08,136.7,136.68,7.98635937]
[1764468358717,1e-08,136.7,136.69,7.98582412]
[1764468359009,1e-08,136.7,136.69,7.31582412]
[1764468359914,0.72000001,136.7,136.69,7.31582412]
[1764468361718,0.72000001,136.7,136.68,7.31635937]
[1764468364002,0.72000001,136.7,136.68,7.98635937]
[1764468369005,1e-08,136.7,136.68,7.31635937]
[1764468369207,1e-08,136.7,136.69,0.67]
[1764468369507,1e-08,136.7,136.69,7.98582412]
[1764468370015,1e-08,136.7,136.69,7.31582412]
[1764468372218,1e-08,136.7,136.69,7.98582412]
[1764468373319,1e-08,136.7,136.69,17.08009218]
[1764468380700,1e-08,136.7,136.69,20.32011802]
[1764468380904,1e-08,136.7,136.69,38.60097551]
[1764468385703,1e-08,136.7,136.69,35.36094967]
[1764468385909,1e-08,136.7,136.69,51.5276521]
[1764468386321,1e-08,136.7,136.69,51.66981367]
[1764468386711,1e-08,136.7,136.69,54.88981367]
[1764468390534,1e-08,136.7,136.69,120.92983951]
[1764468393435,1e-08,136.7,136.69,117.68981367]
[1764468401513,1e-08,136.7,136.69,54.21981367]
[1764468401713,1e-08,136.7,136.69,25.59668161]
[1764468401714,3.91002585,136.7,136.69,25.59668161]
[1764468402115,3.91002585,136.7,136.69,7.31582412]
[1764468402943,3.91002585,136.7,136.67,25.60792003]
[1764468403129,0.67,136.69,136.67,25.60792003]
[1764468404535,1e-08,136.7,136.68,9.78426806]
[1764468404718,1e-08,136.7,136.68,17.09803937]
[1764468405118,1e-08,136.7,136.69,7.31582412]
[1764468405318,0.67000001,136.7,136.69,7.31582412]
[1764468407938,1e-08,136.7,136.69,7.31582412]
[1764468408518,0.67000001,136.7,136.69,7.31582412]
[1764468408718,1e-08,136.7,136.69,7.31582412]
[1764468409839,0.67000001,136.7,136.69,7.31582412]
[1764468418447,1e-08,136.7,136.69,7.31582412]
[1764468419323,1e-08,136.7,136.69,8.01582412]
[1764468419848,1e-08,136.7,136.69,7.31582412]
[1764468422049,0.67000001,136.7,136.69,7.31582412]
[1764468422450,1e-08,136.7,136.69,7.31582412]
[1764468422750,1e-08,136.7,136.69,7.60014726]
[1764468422952,1e-08,136.7,136.69,23.57011802]
[1764468423248,1e-08,136.7,136.69,36.03895618]
[1764468423422,1e-08,136.7,136.69,36.73895618]